Cogmind - Beta 15 @@@ ROGUE MODE // 2025.08.28 @ 13:15:53 Player: the Result: Destroyed by Striker with Plasma Lance Performance ------------- Evolutions (7) 3500 Regions Visited (22) 4400 Robots Destroyed (257) 1285 Value Destroyed (8863) 8863 Prototype IDs (75) 1500 Alien Tech Used (2) 400 Bonus (2833) 2833 TOTAL SCORE: 22781 Bonus ------- High Alert Combat Kills 540 Follower Combat Kills 1740 Aligned with FarCom 300 Met Data Miner 300 Met Imprinter 300 Was Imprinted 300 Friendly Fire -647 Cogmind --------- Core Integrity 0/1300 Matter 189/300 Energy 90/100 System Corruption 14% Temperature Cool (0) Movement Core (50) Location -3/Research Parts ------- > --- POWER (2) -------- (None) > --- PROPULSION (8) --- (None) > --- UTILITY (9) ------ (None) > --- WEAPON (2) ------- (None) > --- INVENTORY (5) ---- Medium Reactive Plating Authchip [Propulsion] Advanced Component Analysis Suite Guided EMP Blaster Peak State ------------ > --- POWER ------------ Fusion Reactor Light Antimatter Reactor > --- PROPULSION ------- Light Armored Exoskeleton Armored Leg Armored Leg Zionite Composite Leg I Zionite Composite Leg I Myomer Leg > --- UTILITY ---------- High-capacity Storage Unit Enhanced Optical Array IFF Parser Seismic Detector Makeshift Salvage Targeting Computer Improved Weapon Cycler Makeshift Ablative Armor Makeshift Ablative Armor > --- WEAPON ----------- 8R-AWN's Boregun 8R-AWN's Boregun > --- INVENTORY -------- Light Fission Core Light Antimatter Reactor Zionite Composite Leg I Advanced Coolant Injector Improved Matter Compressor Precision Matter Filter Advanced Transmission Jammer Medium Reactive Plating Improved Powered Armor Authchip [Propulsion] Authchip [Propulsion] Authchip [Propulsion] Advanced Field Recycling Unit Transdimensional Reconstructor Heavy Disruptor Cannon Heavy Phase Cannon Guided EMP Blaster Mini Smartbomb Launcher [Rating: 117] Favorites ----------- Power Reinforced Fission Core Engine Ion Engine Power Core Reinforced Fission Core Reactor Fusion Reactor Propulsion Armored Leg Treads Medium Treads Leg Armored Leg Wheel Compact Wheel Utility High-capacity Storage Unit Device Improved Cooling System Storage High-capacity Storage Unit Processor Experimental Core Analyzer Hackware Hacking Suite Protection Hardened Heavy Armor Plating Weapon Heavy Plasma Cannon Energy Gun Medium Laser Energy Cannon Heavy Plasma Cannon Ballistic Gun 8R-AWN's Boregun Launcher Thermoblaster Special Weapon Mining Laser Slashing Weapon Great Axe Build | -11 -10 -10 -10 -9 -8 -7 -7 -7 -7 -6 -6 -6 -6 -6 -5 -5 -5 -5 -5 -4 -4 -3 ------- Run | Yrd Mat Min Exi Min Mat Fac Low Low Zio Pro Fac Low Low Dat Pro Fac Upp Upp Zhi Pro Fac Res Slots Evolved 14 | . . . . . 4 2 . . . . 2 . . . . 2 . . . . 2 2 Power 1 | . . . . . . . . . . . . . . . . . . . . . 1 . Propulsion 6 | . . . . . 2 . . . . . 2 . . . . 1 . . . . . 1 Utility 7 | . . . . . 2 2 . . . . . . . . . 1 . . . . 1 1 Weapon . | . . . . . . . . . . . . . . . . . . . . . . . Parts Attached 177 | 10 7 4 14 . 29 9 5 6 1 3 26 2 6 . 2 18 2 5 4 5 11 8 Power 19 | 1 2 . 2 . . 1 1 . . 1 2 . . . 1 1 . 1 2 . 4 . Engine 7 | 1 2 . 1 . . . 1 . . . 1 . . . 1 . . . . . . . Core 6 | . . . 1 . . 1 . . . 1 . . . . . 1 . 1 1 . . . Reactor 6 | . . . . . . . . . . . 1 . . . . . . . 1 . 4 . Propulsion 44 | 5 2 . 2 . 9 . . 5 . . 11 . 1 . . 4 . . . . 2 3 Treads 7 | 2 . . . . 4 . . . . . . . . . . . . . . . . 1 Leg 25 | . . . 2 . 5 . . . . . 9 . 1 . . 4 . . . . 2 2 Wheel 12 | 3 2 . . . . . . 5 . . 2 . . . . . . . . . . . Hover . | . . . . . . . . . . . . . . . . . . . . . . . Flight . | . . . . . . . . . . . . . . . . . . . . . . . Utility 75 | 2 2 2 5 . 10 5 2 . 1 1 12 2 4 . 1 12 2 2 2 2 3 3 Device 31 | 1 1 2 4 . 1 1 1 . 1 1 2 1 2 . . 7 2 1 . . 2 1 Storage 8 | 1 1 . . . 2 . . . . . 1 1 . . . 1 . . 1 . . . Processor 8 | . . . 1 . 1 2 . . . . 2 . . . . 1 . 1 . . . . Hackware 5 | . . . . . 1 1 . . . . 1 . . . . 1 . . . . . 1 Protection 23 | . . . . . 5 1 1 . . . 6 . 2 . 1 2 . . 1 2 1 1 Artifact . | . . . . . . . . . . . . . . . . . . . . . . . Weapon 39 | 2 1 2 5 . 10 3 2 1 . 1 1 . 1 . . 1 . 2 . 3 2 2 Energy Gun 11 | 2 . 2 . . 6 1 . . . . . . . . . . . . . . . . Energy Cannon 9 | . . . . . 1 1 1 1 . . 1 . 1 . . 1 . . . . 1 1 Ballistic Gun 6 | . . . 4 . 1 . . . . . . . . . . . . . . . . 1 Ballistic Cannon . | . . . . . . . . . . . . . . . . . . . . . . . Launcher 10 | . . . . . 2 . 1 . . 1 . . . . . . . 2 . 3 1 . Special Weapon 1 | . 1 . . . . . . . . . . . . . . . . . . . . . Impact Weapon . | . . . . . . . . . . . . . . . . . . . . . . . Slashing Weapon 2 | . . . 1 . . 1 . . . . . . . . . . . . . . . . Piercing Weapon . | . . . . . . . . . . . . . . . . . . . . . . . Special Melee Weapon . | . . . . . . . . . . . . . . . . . . . . . . . Unidentified Prototypes 29 | . . 1 8 . 3 1 . . . . 5 1 . . . . 1 . 4 3 1 1 Parts Lost 55 | . . 1 1 . 6 . 7 . . . 3 . 2 . 1 . . . . 2 17 15 Power 6 | . . . . . . . 1 . . . . . . . . . . . . . 4 1 Propulsion 18 | . . . 1 . 4 . 4 . . . . . . . . . . . . . 4 5 Utility 21 | . . . . . 1 . 1 . . . 3 . 2 . 1 . . . . 2 7 4 Weapon 10 | . . 1 . . 1 . 1 . . . . . . . . . . . . . 2 5 Highest Loss Streak 11 | . . 1 1 . 5 . 5 . . . 2 . 1 . 1 . . . . 2 9 11 To Critical Strikes 3 | . . . 1 . . . . . . . . . . . . . . . . . 1 1 Average Backups 16 | 4 9 17 19 19 17 17 15 16 17 17 17 18 17 17 17 18 19 18 18 18 17 14 Power 1 | . 1 1 2 2 1 1 . 1 1 1 . 1 . 1 1 . 1 . . 1 1 . Propulsion 1 | 2 1 2 2 3 . . . . . . 2 4 4 4 4 2 1 1 1 1 1 . Utility 8 | . 1 5 6 8 9 9 9 9 9 10 9 9 8 7 7 10 12 12 13 12 10 8 Weapon 5 | . 4 9 7 5 5 5 5 6 6 6 4 4 4 5 5 4 4 3 3 3 4 3 Tool/Special . | . . . . . . . . . . . . . . . . . . . . . . . Unused Backups 45 | 1 4 . 10 3 5 5 . . 2 . 3 1 1 . . 5 1 . . . . 4 Power 5 | . . . 4 . . 1 . . . . . . . . . . . . . . . . Propulsion 6 | 1 2 . 2 . 1 . . . . . . . . . . . . . . . . . Utility 20 | . . . . 1 3 2 . . 1 . 2 1 1 . . 4 1 . . . . 4 Weapon 13 | . 2 . 4 2 1 1 . . 1 . 1 . . . . 1 . . . . . . Tool/Special 1 | . . . . . . 1 . . . . . . . . . . . . . . . . Average Slot Usage (%) 84 | . 97 100 99 100 96 98 60 63 92 92 86 100 99 87 100 93 88 86 83 88 88 38 Engine 4 | . 14 14 13 . 6 6 . . . . 2 6 6 6 6 2 . . . . . . Core 3 | . . . . 14 2 . 6 7 7 7 1 . . . . 2 5 4 . . . 2 Treads 5 | . 7 23 14 . 3 30 2 . . . . . . . . . . . . . . . Leg 14 | . . . 11 28 31 . . . . . 18 40 40 40 40 38 35 35 35 35 30 12 Wheel 3 | . 18 4 1 . . . . 2 30 30 11 . . . . . . . . . . . Device 10 | . 13 14 13 . 8 13 7 7 7 11 12 13 13 20 20 15 12 12 8 8 11 8 Storage 7 | . 14 14 14 14 9 7 7 7 7 7 6 6 6 6 6 5 5 5 5 5 5 3 Processor 9 | . . . . 14 9 13 15 15 15 10 9 13 12 6 6 5 5 10 11 11 10 6 Protection 5 | . . . . . 8 5 6 7 7 7 6 6 6 6 6 8 10 3 5 9 12 . Energy Gun 3 | . 24 28 10 . 12 . . . . . . . . . . . . . . . . . Energy Cannon 7 | . . . . . 3 11 9 14 15 14 13 13 12 1 12 6 . 2 1 . 2 . Ballistic Gun 2 | . . . 16 28 . . . . . . . . . . . 4 10 6 7 10 6 1 Peak Build Rating 117 | 7 8 14 61 61 73 67 64 56 56 56 85 85 95 77 80 105 104 104 108 108 117 82 Average Rating 59 | 5 7 10 26 50 60 63 48 50 55 54 76 82 82 68 77 93 101 94 95 103 106 53 On Entrance 60 | . 7 8 10 44 61 54 64 50 56 56 54 83 81 77 77 80 102 102 75 103 106 42 Naked Turns 26 | . . . . . . . . . . . . . . . . . . . . . . 26 Heaviest Build 120 | 13 50 50 61 60 83 107 100 100 100 101 120 97 103 103 103 111 86 97 101 101 115 55 Greatest Support 143 | 32 40 40 60 60 112 112 112 64 64 64 96 96 96 96 96 134 134 134 134 134 143 81 Greatest Overweight (x) 33 | . 3 1 3 . 2 . 33 33 1 1 2 1 1 1 1 . . 1 1 . 2 . Average Overweight (x) 1 | . . 1 . . . . 18 15 1 1 . . . . 1 . . . . . . . Largest Inventory Capacity 20 | 8 20 20 20 20 20 20 20 20 20 20 20 20 20 20 20 20 20 20 20 20 20 20 Average Capacity 19 | 6 15 20 20 20 20 20 20 20 20 20 20 20 20 20 20 20 20 20 20 20 20 19 Most Carried 20 | 8 14 20 20 20 20 20 20 20 20 20 20 20 20 18 20 20 20 20 20 20 20 17 Average Carried 18 | 4 9 18 19 20 19 19 18 19 19 20 19 19 19 18 18 19 19 19 18 19 19 14 Final Capacity 20 | 8 20 20 20 20 20 20 20 20 20 20 20 20 20 20 20 20 20 20 20 20 20 5 Final Carried 20 | 8 14 20 20 20 20 19 20 20 20 20 20 20 18 18 20 20 20 18 20 18 18 5 Class Distribution -------------------- 71% | Mutant 16% | Messiah-Mutant 11% | Scavenger-Mutant Dominant Class ---------------- Mutant | -10/Materials Mutant | -10/Mines Mutant | -10/Exiles Mutant | -9/Mines Mutant | -8/Materials Mutant | -7/Factory Mutant | -7/Lower Caves Mutant | -7/Lower Caves Scavenger-Mutant | -7/Zion Scavenger-Mutant | -6/Proximity Caves Mutant | -6/Factory Mutant | -6/Lower Caves Mutant | -6/Lower Caves Mutant | -6/Data Miner Mutant | -5/Proximity Caves Mutant | -5/Factory Messiah-Mutant | -5/Upper Caves Messiah-Mutant | -5/Upper Caves Messiah-Mutant | -5/Zhirov Messiah-Mutant | -4/Proximity Caves Messiah-Mutant | -4/Factory Mutant | -3/Research Resources | -11 -10 -10 -10 -9 -8 -7 -7 -7 -7 -6 -6 -6 -6 -6 -5 -5 -5 -5 -5 -4 -4 -3 ----------- Run | Yrd Mat Min Exi Min Mat Fac Low Low Zio Pro Fac Low Low Dat Pro Fac Upp Upp Zhi Pro Fac Res Matter Collected 8430 | 300 310 115 659 122 819 303 420 111 46 130 342 51 190 . 138 935 406 186 231 1086 1031 499 Remotely . | . . . . . . . . . . . . . . . . . . . . . . . Salvage Created 13194 | 138 445 302 281 172 1972 1363 619 1111 . 110 1500 . 530 . 230 1162 765 69 231 630 1146 418 Parts 677 | 11 21 14 41 14 141 81 30 10 . 11 36 . 22 . 4 65 27 4 14 64 42 25 Haulers Intercepted 8 | . 1 . . . 4 1 . . . . 1 . . . . . 1 . . . . . Recyclers Shooed 7 | . 1 . . . . . . . . . 4 . . . . . . . . . 1 1 Parts Field Recycled 30 | . . . . . . . . . . . . . . . . . . 13 4 13 . . Retrieved Matter 483 | . . . . . . . . . . . . . . . . . . 265 78 140 . . Parts Self-Destructed 178 | . . . . . . . 24 . . 8 . . 31 . 6 . 32 4 13 60 . . Prevented 4 | . . . . . . . 4 . . . . . . . . . . . . . . . Kills | -11 -10 -10 -10 -9 -8 -7 -7 -7 -7 -6 -6 -6 -6 -6 -5 -5 -5 -5 -5 -4 -4 -3 ------- Run | Yrd Mat Min Exi Min Mat Fac Low Low Zio Pro Fac Low Low Dat Pro Fac Upp Upp Zhi Pro Fac Res Combat Hostiles Destroyed 180 | . 6 7 . 6 42 20 14 . . 6 10 . 8 . 5 18 9 4 . 8 9 8 Guns 77 | . 6 6 . 6 19 . . . . . . . . . . 12 9 1 . 8 5 5 Cannons 41 | . . . . . 3 19 4 . . 1 5 . 7 . 2 . . . . . . . AOE 53 | . . . . . 19 . 8 . . 5 3 . . . 3 6 . 3 . . 3 3 Classes Destroyed 25 | 2 5 1 2 1 3 3 1 1 . . 4 . . . . . . . . 2 . . Worker 8 | . 2 . . . 2 2 . . . . . . . . . 1 . . . . 1 . Builder 11 | . . 2 . . 3 1 . . . . 1 . . . . 2 . . . . 1 1 Tunneler 6 | 2 . 1 . . 2 1 . . . . . . . . . . . . . . . . Hauler 8 | . 1 . . . 4 1 . . . . 1 . . . . . 1 . . . . . Recycler 16 | 1 2 . . . 2 3 . . . . 4 . . . . 1 . . . . 3 . Mechanic 4 | . . . . . 1 1 . . . . 1 . . . . . . . . . . 1 Operator 1 | . . . . . . 1 . . . . . . . . . . . . . . . . Turret 1 | . . . 1 . . . . . . . . . . . . . . . . . . . Watcher 10 | . 2 . . . 4 1 . . . . 1 . . . . 2 . . . . . . Swarmer 54 | . 3 3 . 4 17 6 4 . . 5 . . . . . 6 . 4 . . . 2 Grunt 67 | . 3 4 . 1 15 5 6 . . . 5 . 2 . 5 6 9 . . . 6 . Brawler 4 | . . . . . . 1 1 . . . . . 2 . . . . . . . . . Duelist 5 | . . . . 1 . 1 1 . . . . . 1 . . 1 . . . . . . Protector 4 | . . . . . . . . . . . . . . . . . . . . 3 . 1 Sentry 20 | . . . . . 9 3 1 . . . 1 . 1 . . 1 . . . 1 2 1 Demolisher 3 | . . . . . . . . . . . . . . . . . . . . 3 . . Hunter 8 | . . . . . . . . . . . 2 . 1 . . 2 . . . . 1 2 Programmer 12 | . . . . . . 4 . . . 1 1 . 1 . . 2 . . . 1 . 2 Heavy 1 | . . . . . 1 . . . . . . . . . . . . . . . . . Behemoth 2 | . . . . . . . 1 . . . 1 . . . . . . . . . . . Zionite 6 | . . . 6 . . . . . . . . . . . . . . . . . . . Z-Light 2 | . . . . . . . . . . . 1 . . . . . . . . . 1 . Z-Heavy 1 | . . . . . . . . . . . 1 . . . . . . . . . . . Packrat 2 | . . . . . . . 2 . . . . . . . . . . . . . . . Samaritan 1 | . . . . . . . . 1 . . . . . . . . . . . . . . Mutant 1 | . . . . . . . . . . . 1 . . . . . . . . . . . Best Kill Streak 8 | 2 4 3 4 4 7 6 8 . . 3 4 . 4 . 5 8 5 4 . 2 6 4 Combat Bots Only 8 | . 3 4 . 4 5 4 8 . . 3 4 . 4 . 5 5 5 4 . 2 4 4 Max Kills in Single Turn 3 | 1 1 1 1 2 3 1 2 1 . 3 3 . 1 . 2 3 2 3 . 1 2 3 Gunslinging . | . . . . . . . . . . . . . . . . . . . . . . . Exploded 3 | . . . . . 3 . 2 . . 3 2 . . . 2 3 . 3 . . 2 2 Melee . | . . . . . . . . . . . . . . . . . . . . . . . Uniques/NPCs Destroyed 4 | . . . 4 . . . . . . . . . . . . . . . . . . . 8R-AWN (-10/Exiles) EX-DEC (-10/Exiles) EX-HEX (-10/Exiles) EX-BIN (-10/Exiles) Combat | -11 -10 -10 -10 -9 -8 -7 -7 -7 -7 -6 -6 -6 -6 -6 -5 -5 -5 -5 -5 -4 -4 -3 -------- Run | Yrd Mat Min Exi Min Mat Fac Low Low Zio Pro Fac Low Low Dat Pro Fac Upp Upp Zhi Pro Fac Res Hostile Shots Fired 1335 | . 31 48 4 30 134 124 166 . . 4 94 . 47 . 28 71 22 18 . 37 245 232 Missed 448 | . 9 12 2 10 50 41 69 . . 2 30 . 10 . 6 29 5 6 . 8 76 83 Hits 887 | . 22 36 2 20 84 83 97 . . 2 64 . 37 . 22 42 17 12 . 29 169 149 Melee 31 | . . . . . . . 8 . . . . . 12 . . . . 8 . . 1 2 Projectile 856 | . 22 36 2 20 84 83 89 . . 2 64 . 25 . 22 42 17 4 . 29 168 147 AOE 21 | . . . . . . . . . . . 2 . . . . . . . . 19 . . Critical Strikes 47 | . 2 . 1 . 5 . 3 . . . 6 . . . 3 2 1 . . 3 11 10 Actively Blocked 2 | . . . . . . . . . . . . . . . . . . . . . 2 . Part Disruptions 2 | . . . . . . . . . . . . . . . . . . . . . 2 . Damage Taken 16767 | . 315 411 29 196 2008 869 1566 . . 61 1354 . 424 . 419 629 325 88 . 1281 3499 3293 Core 2732 | . 98 94 18 24 385 75 303 . . . 17 . 14 . 20 54 . . . 85 323 1222 Absorbed by Shields . | . . . . . . . . . . . . . . . . . . . . . . . Redirected to Shielding 646 | . . . . . . . . . . . . . . . . 65 36 . . 204 224 117 Ignored by Resistances 817 | . . . . . 193 227 63 . . . 217 . 103 . . 14 . . . . . . Regen/Repaired (Parts) 429 | . . . . . 24 107 . . 234 . . . . . . 64 . . . . . . Core Remaining (%) 61 | 100 . . . 6 30 . . . . 46 . . . . 94 . . . . 86 71 . Volleys Fired 958 | 6 68 22 43 14 133 58 54 28 1 13 78 5 92 . 20 90 26 20 10 56 88 33 Largest 2 | 2 2 2 2 2 2 2 2 2 1 2 2 2 2 . 2 2 2 2 2 2 2 2 Hottest 260 | 100 100 100 60 60 100 160 160 170 90 170 180 180 180 . 180 180 90 260 60 60 110 80 Shots Fired 1443 | 12 104 44 62 27 187 113 68 30 1 15 127 7 132 . 27 124 49 24 20 104 123 43 Gun 688 | 12 72 44 62 27 119 . . . . . . . . . . 65 46 8 20 104 71 38 Cannon 661 | . . . . . 50 113 49 30 1 11 127 7 132 . 24 56 3 9 . . 49 . Launcher 62 | . . . . . 18 . 19 . . 4 . . . . 3 3 . 7 . . 3 5 Special 32 | . 32 . . . . . . . . . . . . . . . . . . . . . Kinetic 441 | . . . 62 27 . . . . . . . . . . . 65 46 8 20 104 71 38 Thermal 820 | 12 104 44 . . 50 113 49 30 1 11 127 7 132 . 24 56 3 15 . . 42 . Explosive 49 | . . . . . 18 . 12 . . 4 . . . . 3 3 . 1 . . 3 5 Electromagnetic 133 | . . . . . 119 . 7 . . . . . . . . . . . . . 7 . Robot Hit Streak 21 | 9 11 17 8 3 9 7 11 21 . 2 15 . 5 . 6 8 10 6 11 12 8 7 Robot Miss Streak 5 | 1 2 4 3 5 5 4 2 1 . 1 5 . 4 . 4 3 3 4 2 5 4 2 Penetration Max 2 | . . . 1 1 . . . . . . . . . . . 1 1 . 1 1 2 1 Secondary Targets 8 | . 2 1 . . 2 . . . . . . . . . . 1 1 . . . . 1 Max Gunslinging Chain 1 | . 1 1 . . 1 . . . . . . . . . . 1 1 . . . . 1 Shots Hit Robots 702 | 9 49 32 38 12 101 67 53 21 . 2 61 . 31 . 11 39 29 11 14 49 47 26 Core Hits 460 | 4 20 15 12 7 112 38 34 12 . 6 31 . 15 . 10 30 14 8 5 20 36 31 Critical Kills 48 | . . . 4 . . 1 1 . . . 3 . 1 . . 11 8 1 1 7 8 2 Critical Parts Destroyed 49 | . . . 5 2 . . . . . . . . . . . 17 7 2 4 3 6 3 Critical Strikes 138 | . 7 10 16 2 . 1 3 . . . 3 . 1 . . 29 15 3 5 23 14 6 Burn 17 | . 7 10 . . . . . . . . . . . . . . . . . . . . Meltdown 6 | . . . . . . 1 1 . . . 3 . 1 . . . . . . . . . Destroy 113 | . . . 16 2 . . . . . . . . . . . 29 15 3 5 23 14 6 Sever 2 | . . . . . . . 2 . . . . . . . . . . . . . . . Melee Attacks 40 | . . . 3 . . 28 8 1 . . . . . . . . . . . . . . Impact . | . . . . . . . . . . . . . . . . . . . . . . . Slashing 40 | . . . 3 . . 28 8 1 . . . . . . . . . . . . . . Piercing . | . . . . . . . . . . . . . . . . . . . . . . . Sneak Attacks 8 | . . . 3 . . 5 . . . . . . . . . . . . . . . . Combat Hostiles . | . . . . . . . . . . . . . . . . . . . . . . . Follow-up Attacks . | . . . . . . . . . . . . . . . . . . . . . . . Damage Inflicted 25076 | 111 677 422 913 259 4253 2200 2088 666 . 501 2572 . 1028 . 817 1405 686 1003 325 976 1661 2513 Guns 8261 | 111 653 422 702 259 1644 . . . . . . . . . . 861 686 80 325 976 841 701 Cannons 7962 | . . . . . 232 1779 1080 666 . 74 2146 . 1028 . 290 99 . 141 . . 427 . Explosions 8041 | . . . . . 2377 . 852 . . 427 426 . . . 527 445 . 782 . . 393 1812 Melee 788 | . . . 211 . . 421 156 . . . . . . . . . . . . . . . Ramming . | . . . . . . . . . . . . . . . . . . . . . . . Kinetic 5431 | . . . 702 259 . . . . . . . . . . . 861 686 80 325 976 841 701 Thermal 10176 | 111 677 422 . . 685 1779 1080 666 . 74 2383 . 1028 . 290 99 . 711 . . 171 . Explosive 6645 | . . . . . 1924 . 716 . . 427 189 . . . 527 445 . 212 . . 393 1812 Electromagnetic 2036 | . . . . . 1644 . 136 . . . . . . . . . . . . . 256 . Impact . | . . . . . . . . . . . . . . . . . . . . . . . Slashing 788 | . . . 211 . . 421 156 . . . . . . . . . . . . . . . Piercing . | . . . . . . . . . . . . . . . . . . . . . . . Highest Corruption 14 | . . . . . 5 1 1 1 1 . 1 1 1 1 1 2 2 . . 1 4 14 Average Corruption 1 | . . . . . 3 1 1 1 1 . 1 1 1 1 1 1 1 . . 1 1 4 Corruption Purged 2 | . . . . . . . . . . . . . . . . . 2 . . . . . Corruption Blocked . | . . . . . . . . . . . . . . . . . . . . . . . Effects 146 | . . . . . 26 9 48 20 1 . 6 2 8 . 8 1 3 . . 5 2 7 Message Errors 42 | . . . . . 8 2 12 5 1 . . . 3 . 4 1 1 . . 2 . 3 Matter Fused 35 | . . . . . 5 4 12 5 . . 2 1 1 . 2 . . . . 2 . 1 Heat Flow Errors 17 | . . . . . 2 1 8 3 . . 1 . 1 . . . . . . 1 . . Energy Discharges 16 | . . . . . 3 . 7 2 . . 1 1 1 . . . . . . . . 1 Parts Rejected 2 | . . . . . . . . . . . 1 . 1 . . . . . . . . . Parts Fused 1 | . . . . . . . 1 . . . . . . . . . . . . . . . Data Loss (minor) 15 | . . . . . 3 2 6 2 . . . . . . 1 . . . . . 1 . Data Loss (major) 8 | . . . . . 3 . . 1 . . . . 1 . 1 . 2 . . . . . Misfires 3 | . . . . . 1 . . 1 . . . . . . . . . . . . 1 . Alerts 3 | . . . . . . . 2 1 . . . . . . . . . . . . . . Misdirections 2 | . . . . . . . . . . . . . . . . . . . . . . 2 Weapon Failures 2 | . . . . . 1 . . . . . 1 . . . . . . . . . . . Overload Shots . | . . . . . . . . . . . . . . . . . . . . . . . Overflow Damage 1052 | . . . 70 . 216 106 139 131 . 66 47 . 20 . 2 3 . 111 . . 12 129 Projectiles 342 | . . . . . . 40 97 131 . . 47 . 20 . 2 . . . . . 5 . Explosions 574 | . . . . . 216 . 42 . . 66 . . . . . 3 . 111 . . 7 129 Melee 136 | . . . 70 . . 66 . . . . . . . . . . . . . . . . Knockbacks . | . . . . . . . . . . . . . . . . . . . . . . . Impact . | . . . . . . . . . . . . . . . . . . . . . . . Kinetic . | . . . . . . . . . . . . . . . . . . . . . . . Secondary . | . . . . . . . . . . . . . . . . . . . . . . . Self-Inflicted Damage 402 | . . . . . 75 . 72 . . 31 194 . . . . . . . . . . 30 Shots 12 | . . . . . 2 . 5 . . 1 3 . . . . . . . . . . 1 Rammed . | . . . . . . . . . . . . . . . . . . . . . . . Targets Rammed . | . . . . . . . . . . . . . . . . . . . . . . . Kicked . | . . . . . . . . . . . . . . . . . . . . . . . Crushed . | . . . . . . . . . . . . . . . . . . . . . . . Highest Temperature 438 | 71 335 228 . 78 381 343 303 238 12 102 438 329 427 . 199 228 116 200 . 223 208 . Average Temperature 81 | 32 69 73 . 42 85 67 134 40 9 34 97 141 107 . 118 65 44 76 . 124 50 . Received Heat Transfer 2670 | . 168 180 . 24 441 156 243 . . . 405 . 54 . 237 126 150 . . . 360 126 Effects 11 | . . . . . 7 . . . . . 1 . 3 . . . . . . . . . Shutdowns 2 | . . . . . . . . . . . . . 2 . . . . . . . . . Energy Bleed 4 | . . . . . 3 . . . . . . . 1 . . . . . . . . . Interference 5 | . . . . . 4 . . . . . 1 . . . . . . . . . . . Siege Activations . | . . . . . . . . . . . . . . . . . . . . . . . Martial Activations . | . . . . . . . . . . . . . . . . . . . . . . . Shielding Activations . | . . . . . . . . . . . . . . . . . . . . . . . Robots Disrupted 1 | . . . . . 1 . . . . . . . . . . . . . . . . . Combat Hostiles 1 | . . . . . 1 . . . . . . . . . . . . . . . . . Robots Corrupted 3 | . . . . . 1 . 1 . . . . . . . . . . . . . 1 . Combat Hostiles 3 | . . . . . 1 . 1 . . . . . . . . . . . . . 1 . Parts Fried 8 | . . . . . 4 . 1 . . . . . . . . . . . . . 3 . Impact Corruptions . | . . . . . . . . . . . . . . . . . . . . . . . Robots Melted 7 | . . 1 . . . 1 1 . . . 3 . 1 . . . . . . . . . Combat Hostiles 6 | . . 1 . . . 1 1 . . . 2 . 1 . . . . . . . . . Parts Melted 36 | 1 3 7 . . . 6 1 2 . . 11 . 3 . . . 1 . . . 1 . Heat Transferred 18831 | 333 2455 1924 . . 850 3400 1950 1050 . 100 3500 . 1600 . 450 124 . 948 . . 147 . Parts Sabotaged 1 | . . . . . . . . . . . . . . . . . . . . . 1 . Parts Stolen 9 | . . . . . . . . . . . . . 5 . . . . 4 . . . . Parts Stripped . | . . . . . . . . . . . . . . . . . . . . . . . Power Chain Reactions 6 | . . . . . 6 . . . . . . . . . . . . . . . . . Alert | -11 -10 -10 -10 -9 -8 -7 -7 -7 -7 -6 -6 -6 -6 -6 -5 -5 -5 -5 -5 -4 -4 -3 ------- Run | Yrd Mat Min Exi Min Mat Fac Low Low Zio Pro Fac Low Low Dat Pro Fac Upp Upp Zhi Pro Fac Res Maximum Alert Level 3 | . . . . . 3 2 . . . . 3 . . . . 1 . . . . 3 1 Low Security (%) 47 | 100 100 100 . 100 19 . . . . . 35 . . . . 50 . . . . 48 69 Level 1 30 | . . . . . 34 84 . . . . 13 . . . . 49 . . . . 9 30 Level 2 17 | . . . . . 24 15 . . . . 45 . . . . . . . . . 35 . Level 3 5 | . . . . . 21 . . . . . 6 . . . . . . . . . 6 . Level 4 . | . . . . . . . . . . . . . . . . . . . . . . . Level 5 . | . . . . . . . . . . . . . . . . . . . . . . . High Security . | . . . . . . . . . . . . . . . . . . . . . . . Max Security . | . . . . . . . . . . . . . . . . . . . . . . . Peak Influence 857 | 10 100 70 . 100 857 439 . . . . 713 . . . . 392 . . . . 714 275 Initial 387 | . . . . . 35 387 . . . . 32 . . . . . . . . . . 275 Average 247 | 1 16 8 . 45 409 341 . . . . 376 . . . . 176 . . . . 312 190 Influence Increases 7549 | 15 266 185 . 170 1453 657 380 . . 259 1246 . 185 . 155 784 195 105 15 140 1087 252 Destroy 0b10 Robot/C 4300 | . 120 140 . 120 840 400 280 . . 160 560 . 160 . 100 460 180 80 . 100 460 140 Destroy 0b10 Robot/NC 420 | 15 35 15 . . 90 55 . . . . 80 . . . . 30 5 . 15 15 50 15 Destroy Leader 882 | . 36 30 . 20 216 124 40 . . 30 140 . 10 . 10 74 10 10 . 10 102 20 Allied During Kill 337 | . . . . . . . . . . 69 124 . . . . 28 . . . . 116 . Successful Hack 125 | . 35 . . . 21 35 . . . . 4 . . . . 6 . . . . . 24 Disable Machine 450 | . . . . 15 90 15 . . . . 165 . . . . 30 . . . . 120 15 Destroy Structure 825 | . 25 . . 15 166 28 . . . . 173 . . . . 156 . . . . 224 38 Lose Combat Pursuer 210 | . 15 . . . 30 . 60 . . . . . 15 . 45 . . 15 . 15 15 . Influence Decreases 7418 | 15 265 186 . 80 692 1084 804 . . 206 619 392 473 . 155 408 418 258 15 140 562 646 Entered New Map 1426 | . . 1 . . 55 464 158 . . . 21 252 55 . . . 140 30 . . . 250 Time Decay 5227 | 15 265 175 . 80 567 620 576 . . 198 528 140 403 . 145 318 278 228 15 138 292 246 Lost Part 517 | . . 10 . . 60 . 70 . . . 30 . 15 . 10 . . . . 2 170 150 Lost Ally 248 | . . . . . 10 . . . . 8 40 . . . . 90 . . . . 100 . Squads Dispatched 39 | . 1 . . . 6 9 . . . . 12 . 1 . . 2 . . . . 5 3 Investigation 7 | . 1 . . . 2 1 . . . . 3 . . . . . . . . . . . Extermination 15 | . . . . . . 5 . . . . 4 . . . . 2 . . . . 2 2 Reinforcement 12 | . . . . . 4 1 . . . . 3 . . . . . . . . . 3 1 Assault 4 | . . . . . . 1 . . . . 2 . 1 . . . . . . . . . Garrison 1 | . . . . . . 1 . . . . . . . . . . . . . . . . Intercept . | . . . . . . . . . . . . . . . . . . . . . . . Searches Triggered . | . . . . . . . . . . . . . . . . . . . . . . . Data Miner Redirects 1 | . . . . . . . . . . . . . . . . . . . . . . 1 Construction Impeded 4 | . . . . . 1 . . . . . 2 . . . . . . . . . 1 . Haulers Reinforced 2 | . . . . . . . . . . . . . . . . . . . . . 1 1 Active Scanning Responses . | . . . . . . . . . . . . . . . . . . . . . . . Cargo Convoy Interrupts 2 | . . . . . . . . . . . . . . . . . . . . . 1 1 Stealth | -11 -10 -10 -10 -9 -8 -7 -7 -7 -7 -6 -6 -6 -6 -6 -5 -5 -5 -5 -5 -4 -4 -3 --------- Run | Yrd Mat Min Exi Min Mat Fac Low Low Zio Pro Fac Low Low Dat Pro Fac Upp Upp Zhi Pro Fac Res Distress Signals 25 | . 4 . . . 3 1 . . . . . . . . . 2 . . . 12 1 2 Communications Jammed . | . . . . . . . . . . . . . . . . . . . . . . . Distress Signals . | . . . . . . . . . . . . . . . . . . . . . . . Times Spotted 316 | . 13 7 13 6 52 24 19 . . 8 30 . 15 . 5 27 5 6 . 9 41 36 Peak Tracking Total 15 | . 5 4 9 4 7 4 7 . . 4 4 . 6 . 5 5 4 4 . 2 11 15 Tactical Retreats 15 | . 1 . 5 . 2 . 2 . . . . . 1 . 1 . . 1 . 1 1 . Traps | -11 -10 -10 -10 -9 -8 -7 -7 -7 -7 -6 -6 -6 -6 -6 -5 -5 -5 -5 -5 -4 -4 -3 ------- Run | Yrd Mat Min Exi Min Mat Fac Low Low Zio Pro Fac Low Low Dat Pro Fac Upp Upp Zhi Pro Fac Res Traps Triggered 5 | . 2 . . 1 1 . . . . . . . . . . . . . . 1 . . Indirectly . | . . . . . . . . . . . . . . . . . . . . . . . Trap Hack Attempts . | . . . . . . . . . . . . . . . . . . . . . . . Triggered . | . . . . . . . . . . . . . . . . . . . . . . . Disarmed . | . . . . . . . . . . . . . . . . . . . . . . . Reprogrammed . | . . . . . . . . . . . . . . . . . . . . . . . Reused . | . . . . . . . . . . . . . . . . . . . . . . . Traps Extracted 4 | . . . . . . . 4 . . . . . . . . . . . . . . . Installed . | . . . . . . . . . . . . . . . . . . . . . . . Triggered . | . . . . . . . . . . . . . . . . . . . . . . . Most Traps Carried 4 | . . 3 3 . . . 4 4 2 . . . . . . . . . . . . . Machines | -11 -10 -10 -10 -9 -8 -7 -7 -7 -7 -6 -6 -6 -6 -6 -5 -5 -5 -5 -5 -4 -4 -3 ---------- Run | Yrd Mat Min Exi Min Mat Fac Low Low Zio Pro Fac Low Low Dat Pro Fac Upp Upp Zhi Pro Fac Res Machines Disabled 50 | . 1 . 13 1 6 1 . 1 . . 11 . . . . 2 . . . 5 8 1 Max in Single Turn 2 | . 1 . 2 1 2 1 . 1 . . 2 . . . . 1 . . . 2 1 1 Garrison Access 3 | . . . . . 1 1 . . . . 1 . . . . . . . . . . . Machines Repaired . | . . . . . . . . . . . . . . . . . . . . . . . Machines Dismantled . | . . . . . . . . . . . . . . . . . . . . . . . Machines Sabotaged . | . . . . . . . . . . . . . . . . . . . . . . . Overloaded Fab Kills . | . . . . . . . . . . . . . . . . . . . . . . . Hacking | -11 -10 -10 -10 -9 -8 -7 -7 -7 -7 -6 -6 -6 -6 -6 -5 -5 -5 -5 -5 -4 -4 -3 --------- Run | Yrd Mat Min Exi Min Mat Fac Low Low Zio Pro Fac Low Low Dat Pro Fac Upp Upp Zhi Pro Fac Res Machines Accessed 58 | . 8 1 2 1 13 7 1 . . . 8 . . 3 . 5 1 1 5 . . 2 Terminals 20 | . 8 . . . 8 3 . . . . 1 . . . . . . . . . . . Fabricators 6 | . . . . . . 1 . . . . 3 . . . . 1 . . . . . 1 Repair Stations 8 | . . . . . 2 1 . . . . 2 . . . . 3 . . . . . . Recycling Units 1 | . . . . . . 1 . . . . . . . . . . . . . . . . Scanalyzers 5 | . . . . . 2 . . . . . 1 . . . . 1 . . . . . 1 Garrison Access 3 | . . . . . 1 1 . . . . 1 . . . . . . . . . . . Total Hacks 170 | . 19 1 2 1 42 15 1 . . . 25 . . 24 . 15 3 1 16 . . 5 Successful 114 | . 10 1 2 1 18 11 1 . . . 11 . . 24 . 11 3 1 16 . . 4 Failed 56 | . 9 . . . 24 4 . . . . 14 . . . . 4 . . . . . 1 Catastrophic 5 | . 2 . . . 2 1 . . . . . . . . . . . . . . . . Database Lockouts . | . . . . . . . . . . . . . . . . . . . . . . . Manual 119 | . 16 . 1 . 19 7 . 1 1 . 22 . . . . 35 . . . . 14 3 Terminals 50 | . 19 . . . 21 9 . . . . 1 . . . . . . . . . . . Fabricators 18 | . . . . . . 2 . . . . 12 . . . . 2 . . . . . 2 Repair Stations 22 | . . . . . 7 2 . . . . 6 . . . . 7 . . . . . . Recycling Units 1 | . . . . . . 1 . . . . . . . . . . . . . . . . Scanalyzers 24 | . . . . . 12 . . . . . 3 . . . . 6 . . . . . 3 Garrison Access 6 | . . . . . 2 1 . . . . 3 . . . . . . . . . . . Terminal Hacks 63 | . 7 1 2 1 2 4 1 . . . 1 . . 24 . . 3 1 16 . . . Record 15 | . . . 1 . . . . . . . . . . 6 . . 3 . 5 . . . Part Schematic 15 | . 2 . . . . 1 . . . . . . . 8 . . . . 4 . . . Robot Schematic 7 | . . . . . . . . . . . . . . 7 . . . . . . . . Robot Analysis 6 | . 3 . . . . . . . . . . . . . . . . . 3 . . . Prototype ID Bank 9 | . 1 . . . . 1 . . . . . . . 3 . . . . 4 . . . Open Door 5 | . . 1 . 1 . . 1 . . . 1 . . . . . . 1 . . . . Branch Access Points 1 | . . . . . . 1 . . . . . . . . . . . . . . . . Terminal Index 1 | . 1 . . . . . . . . . . . . . . . . . . . . . Hauler Manifests 1 | . . . . . 1 . . . . . . . . . . . . . . . . . Registered Components 2 | . . . . . 1 1 . . . . . . . . . . . . . . . . Proto ID Catalog 1 | . . . 1 . . . . . . . . . . . . . . . . . . . Fabricator Hacks 9 | . . . . . . 1 . . . . 4 . . . . 2 . . . . . 2 Load Schematic 6 | . . . . . . 1 . . . . 3 . . . . 1 . . . . . 1 Build 3 | . . . . . . . . . . . 1 . . . . 1 . . . . . 1 Repair Station Hacks 11 | . . . . . 4 2 . . . . 2 . . . . 3 . . . . . . Scan Component 8 | . . . . . 3 1 . . . . 2 . . . . 2 . . . . . . Repair 3 | . . . . . 1 1 . . . . . . . . . 1 . . . . . . Recycling Unit Hacks 1 | . . . . . . 1 . . . . . . . . . . . . . . . . Retrieve Components 1 | . . . . . . 1 . . . . . . . . . . . . . . . . Scanalyzer 19 | . . . . . 9 . . . . . 2 . . . . 6 . . . . . 2 Insert Component 10 | . . . . . 5 . . . . . 1 . . . . 3 . . . . . 1 Analyze 9 | . . . . . 4 . . . . . 1 . . . . 3 . . . . . 1 Garrison Access Hacks 2 | . . . . . 1 1 . . . . . . . . . . . . . . . . Seal Access 2 | . . . . . 1 1 . . . . . . . . . . . . . . . . Unauthorized Hacks 9 | . 3 . . . 2 2 . . . . 2 . . . . . . . . . . . Terminals 6 | . 3 . . . 2 1 . . . . . . . . . . . . . . . . Assimilate 2 | . . . . . 2 . . . . . . . . . . . . . . . . . Botnet 4 | . 3 . . . . 1 . . . . . . . . . . . . . . . . Fabricators 3 | . . . . . . 1 . . . . 2 . . . . . . . . . . . Recompile 3 | . . . . . . 1 . . . . 2 . . . . . . . . . . . Repair Stations . | . . . . . . . . . . . . . . . . . . . . . . . Recycling Units . | . . . . . . . . . . . . . . . . . . . . . . . Scanalyzers . | . . . . . . . . . . . . . . . . . . . . . . . Garrison Access . | . . . . . . . . . . . . . . . . . . . . . . . Data Cores Recovered 1 | . . . . . . 1 . . . . . . . . . . . . . . . . Used 1 | . . . . . . 1 . . . . . . . . . . . . . . . . Hacking Detections 34 | . 8 . . . 12 5 . . . . 6 . . . . 3 . . . . . . Full Trace Events 3 | . . . . . 2 . . . . . 1 . . . . . . . . . . . Feedback Events . | . . . . . . . . . . . . . . . . . . . . . . . Feedback Blocked . | . . . . . . . . . . . . . . . . . . . . . . . Robot Schematics Acquired 10 | . . . . . . . . . 3 . . . . 7 . . . . . . . . Robots Built . | . . . . . . . . . . . . . . . . . . . . . . . Authchips . | . . . . . . . . . . . . . . . . . . . . . . . Time . | . . . . . . . . . . . . . . . . . . . . . . . Total Robot Build Rating . | . . . . . . . . . . . . . . . . . . . . . . . Part Schematics Acquired 53 | . 2 . . . 3 1 . . 15 . 16 . . 8 . 3 . . 4 . . 1 Parts Built 5 | . . . . . . . . . . . 1 . . . . 2 . . . . . 2 Authchips 3 | . . . . . . . . . . . 1 . . . . 1 . . . . . 1 Time 142 | . . . . . . . . . . . 42 . . . . 53 . . . . . 47 Total Part Build Rating 26 | . . . . . . . . . . . 4 . . . . 12 . . . . . 10 Parts Repaired 3 | . . . . . 1 1 . . . . . . . . . 1 . . . . . . Time 144 | . . . . . 30 70 . . . . . . . . . 44 . . . . . . Parts Recycled . | . . . . . . . . . . . . . . . . . . . . . . . Recycled Matter . | . . . . . . . . . . . . . . . . . . . . . . . Retrieved Matter . | . . . . . . . . . . . . . . . . . . . . . . . Retrieved Components 1 | . . . . . . 1 . . . . . . . . . . . . . . . . Parts Scanalyzed 9 | . . . . . 4 . . . . . 1 . . . . 3 . . . . . 1 Part Schematics Acquired 7 | . . . . . 3 . . . . . . . . . . 3 . . . . . 1 Parts Damaged . | . . . . . . . . . . . . . . . . . . . . . . . Bothacking | -11 -10 -10 -10 -9 -8 -7 -7 -7 -7 -6 -6 -6 -6 -6 -5 -5 -5 -5 -5 -4 -4 -3 ------------ Run | Yrd Mat Min Exi Min Mat Fac Low Low Zio Pro Fac Low Low Dat Pro Fac Upp Upp Zhi Pro Fac Res Used RIF Installer . | . . . . . . . . . . . . . . . . . . . . . . . Robots Hacked . | . . . . . . . . . . . . . . . . . . . . . . . Non-combat . | . . . . . . . . . . . . . . . . . . . . . . . Combat . | . . . . . . . . . . . . . . . . . . . . . . . Robot Hacks Applied . | . . . . . . . . . . . . . . . . . . . . . . . Relay Couplers Released 3 | . . . . . . . . . . . 3 . . . . . . . . . . . Machine Destruction 3 | . . . . . . . . . . . 3 . . . . . . . . . . . Fabnet Peak Effective % . | . . . . . . . . . . . . . . . . . . . . . . . Robots Rewired 4 | . . . . . . . . . . . . . 2 . . . . . . 2 . . Allies Hacked 1 | . . . . . . . . . . 1 . . . . . . . . . . . . Hacks Repelled . | . . . . . . . . . . . . . . . . . . . . . . . Allies | -11 -10 -10 -10 -9 -8 -7 -7 -7 -7 -6 -6 -6 -6 -6 -5 -5 -5 -5 -5 -4 -4 -3 -------- Run | Yrd Mat Min Exi Min Mat Fac Low Low Zio Pro Fac Low Low Dat Pro Fac Upp Upp Zhi Pro Fac Res Total Allies 26 | . . 3 . . 1 . . . 4 . 5 . 2 . . 4 . . . 2 5 . Largest Group 5 | . . 3 3 . 1 . . . 4 4 5 1 2 2 2 2 . . . 2 4 . Highest-Rated Group 300 | . . 40 40 . 10 . . . 155 155 286 70 40 40 40 170 . . . 98 300 . Highest-Rated Ally 103 | . . 16 16 . 10 . . . 40 40 85 70 20 20 20 85 . . . 49 103 . Zionite Dispatches 6 | . . . . . . . . . . . 2 . . . . 2 . . . . 2 . Heavy 3 | . . . . . . . . . . . 1 . . . . 1 . . . . 1 . Light 2 | . . . . . . . . . . . 1 . . . . . . . . . 1 . Hacker 1 | . . . . . . . . . . . . . . . . 1 . . . . . . Total Orders 63 | . . . 17 . . . . . . . . . 2 . 13 9 3 19 . . . . STAY 7 | . . . 5 . . . . . . . . . . . 1 . . 1 . . . . ROAM 5 | . . . 4 . . . . . . . . . . . . . . 1 . . . . FOLLOW 2 | . . . 2 . . . . . . . . . . . . . . . . . . . EXPLORE 27 | . . . 1 . . . . . . . . . 1 . 8 6 2 9 . . . . RETURN 22 | . . . 5 . . . . . . . . . 1 . 4 3 1 8 . . . . Ally Attacks 314 | . . . 149 . . . . . . 7 85 . 4 . 1 13 . . . . 55 . Total Damage 8404 | . . . 775 . . . . . . 210 2737 . 80 . 36 952 . . . . 3614 . Kills 62 | . . . 7 . . . . . . 2 28 . 1 . . 5 . . . . 19 . Allies Corrupted 1 | . . . 1 . . . . . . . . . . . . . . . . . . . Allies Melted 2 | . . . . . . . . . . . . . . . . . . . . . 2 . Intel | -11 -10 -10 -10 -9 -8 -7 -7 -7 -7 -6 -6 -6 -6 -6 -5 -5 -5 -5 -5 -4 -4 -3 ------- Run | Yrd Mat Min Exi Min Mat Fac Low Low Zio Pro Fac Low Low Dat Pro Fac Upp Upp Zhi Pro Fac Res Active Infowar (turns) 17177 | 69 1259 756 1082 . 1614 1715 272 . 1 210 1754 291 1141 111 980 1564 611 664 407 1030 1142 504 Optics 9298 | . . . . . . . . . . . 853 291 1141 111 980 1564 611 664 407 1030 1142 504 Sensors 4323 | . . . . . . 1715 272 . . . . 142 986 111 980 117 . . . . . . IFF 3795 | . . . . . . . . . . . . . . . . 552 473 496 292 983 999 . Seismic 11792 | 69 1259 756 1082 . 1614 . . . . 210 1742 291 553 . . 1447 611 633 227 240 1058 . Jamming 344 | . . . . . . . . . . . . . . . . 18 . . . . . 326 ECM 2 | . . . . . . . . . 1 . 1 . . . . . . . . . . . Robot Analysis Total 6 | . 3 . . . . . . . . . . . . . . . . . 3 . . . Derelict Logs Recovered 14 | . . 1 . . . . 2 2 2 1 . 1 1 . . . 1 1 . 2 . . Drone Launches 44 | . . . 22 . . . . . . . . . 1 . 5 6 2 8 . . . . Drone Recoveries 38 | . . . 19 . . . . . . . . . . . 5 4 2 8 . . . . Zionite Intel Received 12 | . . . . . . . . . . . 3 . . . . 7 . . . . 2 . Branch Access 1 | . . . . . . . . . . . . . . . . 1 . . . . . . Emergency Access 1 | . . . . . . . . . . . . . . . . 1 . . . . . . Guard Positions 2 | . . . . . . . . . . . 1 . . . . . . . . . 1 . Prototype Stockpiles 1 | . . . . . . . . . . . . . . . . 1 . . . . . . Component Schematics 1 | . . . . . . . . . . . 1 . . . . . . . . . . . Unaware Analyses 2 | . . . . . . . . . . . . . . . . 2 . . . . . . Active Terminals 1 | . . . . . . . . . . . 1 . . . . . . . . . . . Active Garrisons 2 | . . . . . . . . . . . . . . . . 1 . . . . 1 . Depthwide Sectors/0 1 | . . . . . . . . . . . . . . . . 1 . . . . . . Exploration | -11 -10 -10 -10 -9 -8 -7 -7 -7 -7 -6 -6 -6 -6 -6 -5 -5 -5 -5 -5 -4 -4 -3 ------------- Run | Yrd Mat Min Exi Min Mat Fac Low Low Zio Pro Fac Low Low Dat Pro Fac Upp Upp Zhi Pro Fac Res Turns Passed 29916 | 111 1270 1387 2198 237 1994 2091 5322 3036 1458 401 1940 291 1141 111 980 1564 611 664 407 1030 1142 530 Spaces Moved 12717 | 73 726 642 945 157 1033 1074 498 364 1193 268 1147 183 487 87 248 1024 369 326 205 586 723 359 Core 516 | 4 . . . . . . 301 160 . . . . . . . . . . . . . 51 Treads 2395 | 2 130 455 436 . 101 1074 197 . . . . . . . . . . . . . . . Legs 6428 | . . . 391 157 932 . . . . . 402 183 487 87 248 1024 369 326 205 586 723 308 Wheels 3378 | 67 596 187 118 . . . . 204 1193 268 745 . . . . . . . . . . . Hover . | . . . . . . . . . . . . . . . . . . . . . . . Flight . | . . . . . . . . . . . . . . . . . . . . . . . Fastest Speed 50 | 50 100 105 105 120 120 160 160 115 115 115 100 120 120 120 190 118 118 110 118 118 117 50 Average Speed 191 | 92 126 200 182 120 136 160 1034 812 115 115 117 145 149 124 190 119 118 127 142 118 118 106 Slowest Speed 1700 | 160 240 240 240 120 320 160 1700 1700 115 115 310 190 190 190 190 123 118 230 230 118 260 117 Overloaded Moves . | . . . . . . . . . . . . . . . . . . . . . . . Propulsion Burnouts . | . . . . . . . . . . . . . . . . . . . . . . . Robots Hopped . | . . . . . . . . . . . . . . . . . . . . . . . Potential Cave-ins 6 | . . . . . 4 . . . . . . . . . . . . . . . 2 . Cave-ins Triggered 2 | . . . . . 2 . . . . . . . . . . . . . . . . . Teleports 1 | . . . . . . . . . . . . . . . . . . . . . . 1 Exploration Rate (%) 57 | 5 96 99 90 41 94 19 69 56 90 47 33 38 68 73 89 41 50 74 61 55 21 13 Regions Visited 22 Branch Regions 15 Pre-discovered Areas 12 | . . . 1 . . . . . . . . . . 1 . 4 2 . 3 1 . . Known Exits Taken 9 | . . . . . 1 1 1 1 1 . 1 1 . . . 1 . . . 1 . . Unknown Exits Taken 13 | 1 1 1 1 1 . . . . . 1 . . 1 1 1 . 1 1 1 . 1 . Scrap Searched 22 | . . 3 . . . . 1 . 2 4 . 2 3 . . . 1 2 . 4 . . Spaces Dug 252 | . 21 . . . 31 23 4 4 . 40 24 5 27 . 4 48 3 2 . . 16 . Terrain Destroyed 932 | . 29 . 14 16 177 23 101 8 . 69 146 7 99 . 51 70 6 33 . 3 49 31 Melee 24 | . . . . . . 23 . 1 . . . . . . . . . . . . . . Projectile 378 | . 29 . 13 4 40 . 1 7 . 7 52 7 99 . 14 51 4 5 . 1 43 1 AOE 521 | . . . . 12 137 . 100 . . 62 94 . . . 37 17 . 28 . . 6 28 Terrain Rammed . | . . . . . . . . . . . . . . . . . . . . . . . Walls Destroyed . | . . . . . . . . . . . . . . . . . . . . . . . Machines Disabled . | . . . . . . . . . . . . . . . . . . . . . . . Actions | -11 -10 -10 -10 -9 -8 -7 -7 -7 -7 -6 -6 -6 -6 -6 -5 -5 -5 -5 -5 -4 -4 -3 --------- Run | Yrd Mat Min Exi Min Mat Fac Low Low Zio Pro Fac Low Low Dat Pro Fac Upp Upp Zhi Pro Fac Res Total 16758 | 101 913 695 1355 182 1424 1279 603 407 1281 344 1607 200 765 90 728 1276 493 551 297 819 886 462 Wait 2188 | . 82 13 300 2 139 69 9 2 73 53 312 6 110 . 445 69 75 176 61 133 16 43 Move 12694 | 72 725 641 944 156 1031 1073 497 363 1192 267 1146 182 486 86 247 1023 368 325 204 585 722 359 Hop . | . . . . . . . . . . . . . . . . . . . . . . . Pick Up 171 | 9 11 7 13 4 27 12 5 1 6 1 14 2 8 . 6 16 4 6 3 3 10 3 Fast Attach 79 | 10 3 1 2 . 11 2 5 4 . 2 11 . 4 2 . 4 2 2 3 3 3 5 Attach 102 | . 2 1 1 . 13 4 10 . 1 . 10 . 5 . 1 12 2 5 3 5 13 14 Detach 34 | . 2 1 . . 3 . 8 . . . 4 . 1 . . 3 . 1 3 2 2 4 Swap 252 | . 9 7 28 2 37 22 1 5 2 5 15 3 11 . 6 34 10 7 9 15 24 . Drop 188 | 4 11 2 21 4 29 11 6 3 6 3 17 2 9 2 3 24 6 9 1 6 8 1 Fire 958 | 6 68 22 43 14 133 58 54 28 1 13 78 5 92 . 20 90 26 20 10 56 88 33 Melee 40 | . . . 3 . . 28 8 1 . . . . . . . . . . . . . . Ram . | . . . . . . . . . . . . . . . . . . . . . . . Kick . | . . . . . . . . . . . . . . . . . . . . . . . Crush . | . . . . . . . . . . . . . . . . . . . . . . . Escape Stasis 2 | . . . . . 1 . . . . . . . . . . . . . . 1 . . Rewire 49 | . . . . . . . . . . . . . 39 . . . . . . 10 . . Trap . | . . . . . . . . . . . . . . . . . . . . . . . Miscellaneous 1 | . . . . . . . . . . . . . . . . 1 . . . . . . Route ------- -11/Scrapyard -10/Materials (discovered 6 exits: [*Mat x3] / *Min x2 / [*Sub]) -10/Mines (discovered 3 exits: [*Mat x2] / *Exi) -10/Exiles -9/Mines -8/Materials (discovered 3 exits: *Fac x3) -7/Factory (discovered 2 exits: *Low x2) -7/Lower Caves -7/Lower Caves (discovered 2 exits: *Fac / *Zio) -7/Zion -6/Proximity Caves -6/Factory (discovered 3 exits: *Fac / *Low / [*Ext]) -6/Lower Caves -6/Lower Caves -6/Data Miner -5/Proximity Caves -5/Factory (discovered 4 exits: *Fac x2 / *Upp x2) -5/Upper Caves -5/Upper Caves -5/Zhirov -4/Proximity Caves -4/Factory -3/Research History --------- Turn | Location | Event 20 | -11/Scrapyard | Discovered new exit (range 16) 112 | -11/Scrapyard | Entered Materials 271 | -10/Materials | Discovered new exit (range 15) 328 | -10/Materials | Build established: Mutant 365 | -10/Materials | Discovered new exit (range 6) 662 | -10/Materials | Discovered new exit (range 7) 917 | -10/Materials | Discovered new exit (range 12) 1137 | -10/Materials | Discovered new exit (range 5) 1223 | -10/Materials | Discovered new exit (range 8) 1377 | -10/Materials | Build established: Scavenger-Mutant 1382 | -10/Materials | Entered Mines 1430 | -10/Mines | Found the Drone Emporium 1433 | -10/Mines | Found Prototype Device 1433 | -10/Mines | Identified Thief Drone Bay 1615 | -10/Mines | Core integrity fell below 50% 1706 | -10/Mines | Build established: Mutant 1803 | -10/Mines | Discovered new exit (range 9) 2104 | -10/Mines | Learned location of 1 exit from Materials 2111 | -10/Mines | Discovered new exit (range 9) 2181 | -10/Mines | Assisted by bots powering up and referring to "LRC-V3" 2236 | -10/Mines | Found a hidden stash of uninstalled traps 2757 | -10/Mines | Deemed a non-threat by the Exiles lab entrance 2759 | -10/Mines | Discovered new exit (range 5) 2769 | -10/Mines | Entered Exiles 2769 | -10/Exiles | Accompanied by 3 allies 2839 | -10/Exiles | Met 8R-AWN 2880 | -10/Exiles | Met EX-HEX 2947 | -10/Exiles | Met EX-BIN 2976 | -10/Exiles | Aligned with FarCom system 2978 | -10/Exiles | Given EX-Vault access code 3038 | -10/Exiles | Met EX-DEC 3133 | -10/Exiles | Visited The Gauntlet 3396 | -10/Exiles | Learned location of Zion (-7) 3506 | -10/Exiles | Discovered new exit (range 14) 3800 | -10/Exiles | Attacked by the Exiles 3900 | -10/Exiles | Core integrity fell below 20% 3953 | -10/Exiles | Found Prototype Device 3953 | -10/Exiles | Identified AS-neutralizer No. 17b 3956 | -10/Exiles | Found 8R-AWN's Boregun 3958 | -10/Exiles | Found 8R-AWN's Boregun 3974 | -10/Exiles | Lost 3 allies 4345 | -10/Exiles | Allies destroyed 8R-AWN 4406 | -10/Exiles | Opened EX-Vault 4414 | -10/Exiles | Found Supersonic Drone Bay 4775 | -10/Exiles | Destroyed EX-DEC 4797 | -10/Exiles | Destroyed EX-HEX 4803 | -10/Exiles | Destroyed EX-BIN 4826 | -10/Exiles | Found Deploy-a-Sentry 4829 | -10/Exiles | Found Prototype Processor 4829 | -10/Exiles | Identified Exp. Core Analyzer 4967 | -10/Exiles | Left Exiles lab with Deploy-a-Sentry 4967 | -10/Exiles | Entered Mines 4976 | -9/Mines | Met a Derelict who couldn't figure out how to use a Trap Extractor 5192 | -9/Mines | Discovered new exit (range 13) 5204 | -9/Mines | Entered Materials 5204 | -8/Materials | Evolved 4 slots: Propulsion x2, Utility x2 5205 | -8/Materials | Identified exit to Factory 5571 | -8/Materials | Repaired Hvy. EM Shotgun 5902 | -8/Materials | Crushed by falling debris 6209 | -8/Materials | Build established: Scavenger-Mutant 6359 | -8/Materials | Discovered exit to Factory (range 16) 6810 | -8/Materials | Crushed by falling debris 6810 | -8/Materials | Core integrity fell below 50% 6834 | -8/Materials | Discovered exit to Factory (range 16) 6893 | -8/Materials | Lost 5 parts (3n1u1w) 7153 | -8/Materials | Build established: Mutant 7198 | -8/Materials | Entered Factory 7198 | -7/Factory | Evolved 2 slots: Utility x2 8000 | -7/Factory | Repaired Hvy. Deuterium Engine 8391 | -7/Factory | Garrison activated, responded to threat 8575 | -7/Factory | Identified exit to Lower Caves 9198 | -7/Factory | First assault squad dispatched 9289 | -7/Factory | Entered Lower Caves 9289 | -7/Lower Caves | Spotted GJ-361(f) 9291 | -7/Lower Caves | Encountered a Master Thief 9463 | -7/Lower Caves | Spotted B-75 Beast 9544 | -7/Lower Caves | Destroyed B-75 Beast 9611 | -7/Lower Caves | Learned 4 Factory zone layouts 9719 | -7/Lower Caves | Attracted the attention of an 0b10 checkpoint 9724 | -7/Lower Caves | Destroyed 8 combat bots 9766 | -7/Lower Caves | Core integrity fell below 50% 9780 | -7/Lower Caves | Lost 5 parts (1p3n1u) 10574 | -7/Lower Caves | Learned Factory emergency access door positions 14342 | -7/Lower Caves | Discovered new exit (range 10) 14461 | -7/Lower Caves | Identified exit to Lower Caves 14611 | -7/Lower Caves | Entered another Lower Caves area 15387 | -7/Lower Caves | Learned Factory trap positions 15829 | -7/Lower Caves | Discovered new exit (range 14) 16662 | -7/Lower Caves | Learned Factory terminal intel 17599 | -7/Lower Caves | Discovered new exit (range 15) 17614 | -7/Lower Caves | Identified exit to Zion 17622 | -7/Lower Caves | Acquired the password to a Derelict Tinkerer's latest research 17633 | -7/Lower Caves | Found Prototype Special Weapon 17647 | -7/Lower Caves | Entered Zion 17692 | -7/Zion | Build established: Scavenger-Mutant 17751 | -7/Zion | Discovered new exit (range 12) 17775 | -7/Zion | Given A8's code to call for help 17789 | -7/Zion | System corruption cleaned by Quarantine Array 17843 | -7/Zion | Received a visual enhancement algorithm 17845 | -7/Zion | Ran a visual enhancement algorithm 18126 | -7/Zion | Acquired unknown access codes intercepted by a Zionite 18150 | -7/Zion | Learned Factory stockpile data 18513 | -7/Zion | Given the Hacking Drone Bay 18616 | -7/Zion | Found CR-A16's Pointy Stick 18784 | -7/Zion | Met Imprinter 18802 | -7/Zion | Imprinted 18804 | -7/Zion | Declared Zion's savior 19077 | -7/Zion | Identified exit to Proximity Caves 19105 | -7/Zion | Entered Proximity Caves 19105 | -6/Proximity Caves | Accompanied by 4 allies 19314 | -6/Proximity Caves | Learned Factory terminal intel 19475 | -6/Proximity Caves | Discovered new exit (range 14) 19506 | -6/Proximity Caves | Entered Factory 19506 | -6/Factory | Accompanied by 3 allies 19506 | -6/Factory | Evolved 2 slots: Propulsion x2 19508 | -6/Factory | Loaded intel: 87 trap records 19511 | -6/Factory | Loaded intel: 28 terminal locations 19792 | -6/Factory | Retrieved Zion intel report: Active Terminals 19793 | -6/Factory | Zion Heavy squad teleported in 19884 | -6/Factory | Build established: Mutant 19909 | -6/Factory | Discovered new exit (range 8) 20049 | -6/Factory | Found Prototype Protection 20049 | -6/Factory | Identified Zio. Weapon Casing 20071 | -6/Factory | Found Prototype Protection 20071 | -6/Factory | Identified Zio. Heavy Carapace 20126 | -6/Factory | Fabricated Lgt. Armored Exoskeleton (x1) 20231 | -6/Factory | Discovered new exit (range 6) 20274 | -6/Factory | Found Hvy. Reflective Plating 20351 | -6/Factory | Build established: Messiah-Mutant 20437 | -6/Factory | Retrieved Zion intel report: Component Schematics 20540 | -6/Factory | Spotted B-75 Beast 20568 | -6/Factory | Destroyed B-75 Beast 20733 | -6/Factory | Retrieved Zion intel report: Guard Positions 20734 | -6/Factory | Zion Light squad teleported in 20792 | -6/Factory | Build established: Mutant 20863 | -6/Factory | Discovered new exit (range 12) 20892 | -6/Factory | Identified exit to Lower Caves 20991 | -6/Factory | Terminal network hard line cut 21446 | -6/Factory | Entered Lower Caves 21446 | -6/Lower Caves | Accompanied by 1 ally 21551 | -6/Lower Caves | Identified exit to Lower Caves 21576 | -6/Lower Caves | Found Zio. Weapon Casing 21737 | -6/Lower Caves | Entered another Lower Caves area 21927 | -6/Lower Caves | Encountered a Warlord checkpoint 22332 | -6/Lower Caves | Attracted the attention of an 0b10 outpost 22747 | -6/Lower Caves | Spotted D4-TI5(f) 22747 | -6/Lower Caves | Spotted 70-4XT(f) 22748 | -6/Lower Caves | Encountered a Master Thief 22748 | -6/Lower Caves | Encountered a Master Thief 22748 | -6/Lower Caves | Spotted LS-ZPX(f) 22748 | -6/Lower Caves | Spotted 7X-29H(f) 22749 | -6/Lower Caves | Encountered a Master Thief 22749 | -6/Lower Caves | Encountered a Master Thief 22750 | -6/Lower Caves | Deploy-a-Sentry stolen by Master Thief 22754 | -6/Lower Caves | Adv. Weapon Cycler stolen by Master Thief 22757 | -6/Lower Caves | Zio. Heavy DM Reactor stolen by Master Thief 22759 | -6/Lower Caves | Allies destroyed 70-4XT(f) 22763 | -6/Lower Caves | Exp. Heat Sink stolen by Master Thief 22806 | -6/Lower Caves | Discovered new exit (range 8) 22878 | -6/Lower Caves | Entered Data Miner 22878 | -6/Data Miner | Accompanied by 2 allies 22880 | -6/Data Miner | Discovered new exit (range 6) 22895 | -6/Data Miner | Met Data Miner 22923 | -6/Data Miner | Learned location of Section 7 (-2) 22923 | -6/Data Miner | Acquired the access code to Warlord's prototype stash 22941 | -6/Data Miner | Received God Mode back door access code from Data Miner 22989 | -6/Data Miner | Entered Proximity Caves 22989 | -5/Proximity Caves | Accompanied by 2 allies 23541 | -5/Proximity Caves | Discovered new exit (range 35) 23608 | -5/Proximity Caves | Encountered a Derelict sapper outpost 23969 | -5/Proximity Caves | Entered Factory 23969 | -5/Factory | Evolved 2 slots: Propulsion x1, Utility x1 23970 | -5/Factory | Loaded intel: 26 terminal locations 24036 | -5/Factory | Fabricated Imp. Weapon Cycler (x2) 24115 | -5/Factory | Discovered new exit (range 23) 24354 | -5/Factory | Retrieved Zion intel report: Branch Access 24354 | -5/Factory | Identified exit to Upper Caves 24379 | -5/Factory | Retrieved Zion intel report: Active Garrisons 24409 | -5/Factory | Discovered new exit (range 8) 24485 | -5/Factory | Repaired Rnf. Deuterium Engine 24625 | -5/Factory | Retrieved Zion intel report: Prototype Stockpiles 24626 | -5/Factory | Zion Heavy squad teleported in 24826 | -5/Factory | Found Zio. Weapon Casing 24941 | -5/Factory | Retrieved Zion intel report: Unaware Analyses 24984 | -5/Factory | Discovered new exit (range 36) 24996 | -5/Factory | Retrieved Zion intel report: Unaware Analyses 25106 | -5/Factory | Build established: Messiah-Mutant 25291 | -5/Factory | Retrieved Zion intel report: Depthwide Sectors/-5 25427 | -5/Factory | Retrieved Zion intel report: Emergency Access 25428 | -5/Factory | Zion Hacker squad teleported in 25435 | -5/Factory | Terminal network hard line cut 25533 | -5/Factory | Entered Upper Caves 25701 | -5/Upper Caves | Found Imp. Powered Armor 25835 | -5/Upper Caves | Learned location of Armory (-4) 25835 | -5/Upper Caves | Learned Armory stockpile data 26015 | -5/Upper Caves | Discovered new exit (range 17) 26144 | -5/Upper Caves | Entered another Upper Caves area 26446 | -5/Upper Caves | Learned 4 Factory zone layouts 26563 | -5/Upper Caves | Discovered new exit (range 32) 26670 | -5/Upper Caves | Spotted JX-W8R(f) 26670 | -5/Upper Caves | Spotted 2E-8HO(f) 26670 | -5/Upper Caves | Spotted V7-BPO(f) 26671 | -5/Upper Caves | Spotted 1P-74I(f) 26673 | -5/Upper Caves | Encountered a Master Thief 26673 | -5/Upper Caves | Encountered a Master Thief 26673 | -5/Upper Caves | Encountered a Master Thief 26674 | -5/Upper Caves | Encountered a Master Thief 26677 | -5/Upper Caves | Zio. Heavy DM Reactor stolen by Master Thief 26683 | -5/Upper Caves | Thermoblaster stolen by Master Thief 26686 | -5/Upper Caves | Neutrino Core stolen by Master Thief 26717 | -5/Upper Caves | Adv. Drone Bay stolen by Master Thief 26808 | -5/Upper Caves | Entered Zhirov 26808 | -5/Zhirov | Discovered new exit (range 3) 26973 | -5/Zhirov | Found Alien Artifact 26973 | -5/Zhirov | Identified Integrated Dissipator 26973 | -5/Zhirov | Installed Integrated Dissipator, increased core heat dissipation (+20) 26990 | -5/Zhirov | Found Alien Artifact 27173 | -5/Zhirov | Learned location of Testing (-2) 27173 | -5/Zhirov | Learned location of Quarantine (-3) 27173 | -5/Zhirov | Learned location of Command (-1) 27215 | -5/Zhirov | Entered Proximity Caves 27436 | -4/Proximity Caves | Identified exit to Factory 28081 | -4/Proximity Caves | Found Prototype Launcher 28081 | -4/Proximity Caves | Identified Mni. Smartbomb Launcher 28084 | -4/Proximity Caves | Found Prototype Launcher 28084 | -4/Proximity Caves | Identified Scatter Rocket Array 28088 | -4/Proximity Caves | Found Mni. Smartbomb Launcher 28245 | -4/Proximity Caves | Entered Factory 28245 | -4/Factory | Accompanied by 2 allies 28245 | -4/Factory | Evolved 2 slots: Power x1, Utility x1 28678 | -4/Factory | Spotted B-86 Titan 28704 | -4/Factory | Retrieved Zion intel report: Guard Positions 28705 | -4/Factory | Zion Heavy squad teleported in 28905 | -4/Factory | P-70 Sage assimilated allied Destroyer 7a 28923 | -4/Factory | Allies destroyed B-86 Titan 29012 | -4/Factory | Lost 3 parts (1p2u) 29082 | -4/Factory | Retrieved Zion intel report: Active Garrisons 29083 | -4/Factory | Zion Light squad teleported in 29265 | -4/Factory | Discovered new exit (range 13) 29310 | -4/Factory | Lost 3 allies 29334 | -4/Factory | Lost 5 parts (1p4u) 29341 | -4/Factory | Cargo convoy interrupted 29381 | -4/Factory | Found Zio. Weapon Casing 29387 | -4/Factory | Entered Research 29387 | -3/Research | Evolved 2 slots: Propulsion x1, Utility x1 29417 | -3/Research | Lost 9 parts (2p4n1u2w) 29570 | -3/Research | Build established: Mutant 29597 | -3/Research | Fabricated Arm. Leg? 29732 | -3/Research | Identified Transdimensional Reconstructor 29732 | -3/Research | Warped through subspace 29751 | -3/Research | Lost 4 parts (1p1n2u) 29866 | -3/Research | Cargo convoy interrupted 29873 | -3/Research | Spotted Striker 29886 | -3/Research | System corruption reached 10% 29889 | -3/Research | Core integrity fell below 50% 29891 | -3/Research | Released all parts (4) 29894 | -3/Research | Incoming assault squad redirected 29901 | -3/Research | Core integrity fell below 20% 29917 | -3/Research | Destroyed by Striker with Plasma Lance Last Messages --------------- 29896_ U-05 Engineer builds a Wall. 29896_ Slug penetrates Wall. 29897_ K-01 Serf collects debris. 29897_ P-80 Master resets Striker, system corruption cleaned. 29902_ W-44 Eye sends out distress signal. 29909_ HQ7C17HSRL,AU&HWL#X/ 29912_ Slug penetrates Wall. 29912_ Penetrated by Slug. 29912_ Slug penetrates I-47 Archangel. 29912_ I-47 Archangel suffers critical hit (Destroy). 29912_ I-47 Archangel destroyed. 29913_ M-36 Artificer repairs R-10 Processor Field Recycling Unit. 29914_ K-01 Serf collects debris. 29915_ P-80 Master resets K-01 Serf, system corruption cleaned. 29915_ P-80 Master resets P-80 Master, system corruption cleaned. Map ----- +----------------------------------------------------+ | ????????????# # "" #???????? #?????? | | ????????????# # #???????? #?????? | | ????????????# % #??????? """#?????? | | ????????????### ####+#/#####??????? """#?????? | | ??????????# ########### R"#?????? | | ??????????? #### # = """#?????? | | ??????????? ???# + "" #?????? | | ??????????? ????# # #?????? | | ??????????#####????# ######### # ! #?????? | | ?????????########### #???????# #? #?????? | | ?????????# """" # #???????# #? ! #?????? | | ?????????# ""S"" # #########/#########?????? | | ?????????# "" "" # # ! #???????????? | | ?????????# # # #???????????? | | ?????????# ! + + #???????????? | | ?????????# # # #???????????? | | ?????????# # # """ #???????????? | | ?????????# # # """ #???????????? | | ??????############## # """ #???????????? | | ??????# # #############???????????? | | ??????# # ##??????????????######### | | ??????# + T#??????????????# | | ??????# # k #??????????????# [ | | ??????# # ##??????????????# | | ??????############## !K##??????????????# | | ????????# # *%@#??????????????# !!! | | ????????# # =!=### ###+##?????# |%[ | | ????????# !# #????# "[=! | | ????????# =!! ! + % ? "%%|! | | ????????# =!! # ####??? =%!= ? | | ????????# =! # k #######+###???????##+#?? | | ????????# # #??????????????????#*#?? | | ????????# ### ###????????????????### ### | | ????????###########?# #??????????????????# [ | | ????????????????????# #??????????????????# | | ????????????????????# #??????????????????# | | ????????????????????# #??????????????????# | | ????????????????????# #??????????????????###"### | | ????????????????????# ????????????????#######?? | | ????????????????????? ????????????????# ? | | ????????????????????? ???????????????# ? | | ????????????????????? ???????????????# | | ????????????????????? ??????????????# | | ?????????????????????? ??????????????# """ | | ?????????????????????? ?????????????# """ | | ?????????????????????? ###?????????????# """ | | ?????????????????????? #???????????????# ? | | ?????????????????????? ??????????????????# ? | | ?????????????????????????????????????????#######?? | | ?????????????????????????????????????????????????? | +----------------------------------------------------+ Best States ------------- Heat Dissipation 90 Coolant Potential 100 Energy Generation 45 Energy Capacity 365 Matter Stores 300 Matter Capacity 300 Sight Range 22 Robot Scan Range 16 Terrain Scan Density 10 ECM Strength 2 Jamming Range 16 Armor Coverage 1200 Resistance: KI 30 Resistance: TH 25 Weapon Shielding 100 Weapon Cycling 20 Evasion (%) 55 Core Analysis 8 Recoil Reduction 4 Matter Filtering 50 Salvage Targeting 4 Offensive Hacking 10 Authchip Count 4 Trap Extractor Capacity 6 Item Schematics ----------------- Hcp. Storage Unit | -10/Materials | Hacked Huge Storage Unit | -10/Materials | Hacked Hrd. Heavy Armor Plating | -8/Materials | Scanalyzed Med. Reactive Plating | -8/Materials | Scanalyzed Rnf. Fission Core | -8/Materials | Scanalyzed Lgt. Armored Exoskeleton | -7/Factory | Hacked Power Amplifier | -7/Zion | Archive Matter Filter | -7/Zion | Archive Armor Integrity Analyzer | -7/Zion | Archive Nuclear Pulse Thruster | -7/Zion | Archive Adv. Trap Extractor | -7/Zion | Archive Force Booster | -7/Zion | Archive Flexi-carbon Leg | -7/Zion | Archive System Restoration Module | -7/Zion | Archive Lgt. Fission Core | -7/Zion | Archive Gatling Laser | -7/Zion | Archive Coil Gun | -7/Zion | Archive Core Analyzer | -7/Zion | Archive Adv. Signal Interpreter | -7/Zion | Archive Imp. Weapon Cycler | -7/Zion | Archive HERF Cannon | -7/Zion | Archive Adv. Terrain Scan Processor | -6/Factory | Z-intel Lightning Gun | -6/Factory | Z-intel Imp. Shield Generator | -6/Factory | Z-intel Imp. Trap Extractor | -6/Factory | Z-intel Seismic Detector | -6/Factory | Z-intel Imp. VSS Leg | -6/Factory | Z-intel Great Axe | -6/Factory | Z-intel Focal Shield | -6/Factory | Z-intel Hvy. Ion Cannon | -6/Factory | Z-intel Adv. Terrain Scanner | -6/Factory | Z-intel Greatsword | -6/Factory | Z-intel Arm. Huge Wheel | -6/Factory | Z-intel Lrg. Battery | -6/Factory | Z-intel Actuator Array | -6/Factory | Z-intel Hvy. Machine Gun | -6/Factory | Z-intel Lgt. Nuclear Core | -6/Factory | Z-intel Combat Drone Bay | -6/Data Miner | Free Lgt. Regenerative Plating | -6/Data Miner | Free Enh. Armored Leg | -6/Data Miner | Free Prc. Energy Filter | -6/Data Miner | Free Ionic Axe | -6/Data Miner | Free Centrium Wheel | -6/Data Miner | Free Lrn. Sensor Array | -6/Data Miner | Free Matter Neutralizer | -6/Data Miner | Free Mak. Ablative Armor | -5/Factory | Scanalyzed Arm. Leg | -5/Factory | Scanalyzed IFF Parser | -5/Factory | Scanalyzed Assault Drone Bay | -5/Zhirov | Free Exp. Optical Array | -5/Zhirov | Free Imp. Arc Thrower | -5/Zhirov | Free Exp. Heat Sink | -5/Zhirov | Free Imp. Powered Armor | -3/Research | Scanalyzed Robot Schematics ------------------ S-27 Virus | -7/Zion | Archive O-24 Administrator | -7/Zion | Archive B-48 Gladiator | -7/Zion | Archive A-15 Conveyor | -6/Data Miner | Free Y-54 Guardian | -6/Data Miner | Free L-41 Fighter | -6/Data Miner | Free R-10 Processor | -6/Data Miner | Free A-27 Freighter | -6/Data Miner | Free E-15 Imp | -6/Data Miner | Free L-61 Swordsman | -6/Data Miner | Free Fabricated ------------ Lgt. Armored Exoskeleton | x1 | -6/Factory | Authchip Imp. Weapon Cycler | x2 | -5/Factory | Authchip Arm. Leg | x2 | -3/Research | Authchip Repaired ---------- Hvy. EM Shotgun | 70% | -8/Materials Hvy. Deuterium Engine | 10% | -7/Factory Rnf. Deuterium Engine | 60% | -5/Factory Alien Tech Used ----------------- Integrated Dissipator Transdimensional Reconstructor Achievements -------------- None Challenges ------------ None Game ------ Seed WeaponsAlertKatana Manual? 0 Play Time 05:06:57 Cumulative 276.4 hours Start 2025.08.27 @ 20:56:19 End 2025.08.28 @ 13:15:53 Sessions 6 Manual Loads 0 Difficulty Rogue Special Mode None Game No. 188 Rogue 188 Adventurer 0 Explorer 0 Win Type - Total 3 Types 3/0/0/0/0/0/0/0/0/0 Lore% 72 Gallery% 72 Achievement% 60 Wizard Run 0 Options --------- Layout 1 ASCII 0 Keyboard 0 Movement Mouse Keybinds 0 Fullscreen 1 Font 32/SmallcapsGlow Map View 50x35 Zoom Use 0% Tactical HUD 1 Map Filters NONE Filters NONE Steam 1 RUN: 3ec66a11-7d55-4a8e-99f8-0e8d71af148a